[Event "WWRR B-Group 2024"]
[Site "Wachtebeke"]
[Date "2024.02.12"]
[Round "1.1"]
[White "Ruzhansky, Elias"]
[Black "Toulzac, Pierre-Yves"]
[Result "1/2-1/2"]
[ECO "B06"]
[WhiteElo "2133"]
[BlackElo "2046"]
[Annotator "NA RC"]
[PlyCount "134"]
[EventDate "2024.02.12"]
[EventType "tourn"]
[EventCountry "BEL"]
[SourceTitle "playchess.com"]
[Source "ChessBase"]
[SourceQuality "1"]
[TimeControl "40/5400+30:900+30"]

1. e4 {[%emt 0:01:25]} g6 {[%emt 0:00:40]} 2. d4 {[%emt 0:00:05]} Bg7 {[%emt 0:00:05]} 3. Nf3 {[%emt 0:00:16]} d6 {[%emt 0:00:13]} 4. Bd3 {[%emt 0:00:08]} a6 {[%emt 0:00:40]} 5. O-O {[%emt 0:00:51]} Nf6 {[%emt 0:03:16]} 6. c3 {[%emt 0:00:25]} O-O {[%emt 0:01:07]} 7. Re1 {[%emt 0:01:49]} Nc6 {[%emt 0:00:58]} 8. h3 {[%emt 0:05:01]} e5 {[%emt 0:03:18]} 9. Be3 {[%emt 0:00:28]} exd4 {[%emt 0:08:19]} 10. Nxd4 {[%emt 0:03:14]} Ne5 {[%emt 0:03:47]} 11. Bc2 {[%emt 0:00:06]} Nc4 {[%emt 0:04:13]} 12. Bc1 {[%emt 0:00:09]} Re8 {[%emt 0:01:03]} 13. Nd2 {[%emt 0:01:13]} Nxd2 {[%emt 0:01:18]} 14. Bxd2 {[%emt 0:00:13]} Bd7 {[%emt 0:00:32]} 15. Bg5 {[%emt 0:16:10]} h6 {[%emt 0:07:41]} 16. Bh4 {[%emt 0:00:16]} c5 {[%emt 0:08:44]} 17. Nf3 {[%emt 0:00:22]} Be6 {[%emt 0:01:48]} 18. a4 {[%emt 0:02:24]} Qb6 {[%emt 0:02:52]} 19. Qd2 {[%emt 0:04:59]} Nd7 {[%emt 0:01:00]} 20. Bd3 {[%emt 0:08:26]} Ne5 {[%emt 0:19:42]} 21. Nxe5 {[%emt 0:00:36]} dxe5 {[%emt 0:00:14]} 22. Qe2 {[%emt 0:08:07]} g5 {[%emt 0:07:02]} 23. Bg3 {[%emt 0:00:22]} Rad8 {[%emt 0:03:22]} 24. a5 {[%emt 0:05:27]} Qc6 {[%emt 0:04:33]} 25. h4 {[%emt 0:13:58]} Rd6 {[%emt 0:03:45]} 26. hxg5 {[%emt 0:03:24]} hxg5 {[%emt 0:00:23]} 27. Bc2 {[%emt 0:01:06]} Red8 {[%emt 0:00:27]} 28. Red1 {[%emt 0:02:50]} c4 {[%emt 0:02:03]} 29. Rxd6 {[%emt 0:13:46]} Rxd6 {[%emt 0:00:47]} 30. Qh5 {[%emt 0:02:52]} f6 {[%emt 0:00:25]} 31. Ba4 {[%emt 0:00:46]} Qc8 {[%emt 0:00:04]} 32. Qe2 {[%emt 0:02:43]} Qd8 {[%emt 0:00:33]} 33. Rd1 {[%emt 0:00:26]} Rxd1+ {[%emt 0:00:59]} 34. Qxd1 {[%emt 0:00:07]} Qxa5 {[%emt 0:00:47]} 35. Qd6 {[%emt 0:01:46]} Bf7 {[%emt 0:00:39]} 36. Bd1 {[%emt 0:01:26]} Qb5 {[%emt 0:00:59]} 37. Bg4 {[%emt 0:00:29]} Qxb2 {[%emt 0:04:30]} 38. Be6 {[%emt 0:00:24]} Qb1+ {[%emt 0:00:51]} 39. Kh2 {[%emt 0:00:05]} Qd3 {[%emt 0:00:47]} 40. Qb8+ {[%emt 0:01:07]} Bf8 {[%emt 0:00:10]} 41. Bxf7+ {[%emt 0:15:21]} Kxf7 {[%emt 0:15:16]} 42. Qxb7+ {[%emt 0:00:06]} Be7 {[%emt 0:00:16]} 43. Qxa6 {[%emt 0:00:53]} Qxc3 {[%emt 0:01:04]} 44. Qc8 {[%emt 0:00:30]} Qd4 {[%emt 0:00:29]} 45. f3 {[%emt 0:00:18]} Qc5 {[%emt 0:00:47]} 46. Qh8 {[%emt 0:00:00]} c3 {[%emt 0:00:00]} 47. Qh7+ {[%emt 0:00:00]} Ke6 {[%emt 0:00:00]} 48. Qg8+ {[%emt 0:00:00]} Kd7 {[%emt 0:00:00]} 49. Be1 {[%emt 0:00:00]} c2 {[%emt 0:00:00]} 50. Bd2 {[%emt 0:00:00]} c1=Q {[%emt 0:00:00]} 51. Bxc1 {[%emt 0:00:00]} Qxc1 {[%emt 0:00:00]} 52. Qd5+ {[%emt 0:00:00]} Bd6 {[%emt 0:00:00]} 53. Qf7+ {[%emt 0:00:00]} Kc8 {[%emt 0:00:00]} 54. Qe6+ {[%emt 0:00:00]} Kc7 {[%emt 0:00:00]} 55. Qf7+ {[%emt 0:00:00]} Kb6 {[%emt 0:00:00]} 56. Qe6 {[%emt 0:01:19]} Qd2 {[%emt 0:00:23]} 57. Kh3 {[%emt 0:01:08]} Kc5 {[%emt 0:01:36]} 58. g3 {[%emt 0:01:08]} g4+ {[%emt 0:04:31]} 59. Kxg4 {[%emt 0:00:41]} Qg5+ {[%emt 0:00:41]} 60. Kh3 {[%emt 0:00:34]} Kc6 {[%emt 0:00:52]} 61. Qc8+ {[%emt 0:01:13]} Bc7 {[%emt 0:00:35]} 62. Qe6+ {[%emt 0:01:08]} Kb7 {[%emt 0:00:42]} 63. Qd5+ {[%emt 0:01:06]} Kb8 {[%emt 0:00:53]} 64. Qb5+ {[%emt 0:00:40]} Ka7 {[%emt 0:00:49]} 65. Qc5+ {[%emt 0:00:00]} Kb7 {[%emt 0:00:00]} 66. Qb5+ {[%emt 0:00:00]} Ka7 {[%emt 0:00:00]} 67. Qc5+ {[%emt 0:03:08]} Kb7 1/2-1/2

[Event "WWRR B-Group 2024"]
[Site "Wachtebeke"]
[Date "2024.02.12"]
[Round "1.2"]
[White "Verduyn, Frederic"]
[Black "Dreelinck, Adriaan"]
[Result "1-0"]
[ECO "B13"]
[WhiteElo "2087"]
[BlackElo "2205"]
[Annotator "RC"]
[PlyCount "79"]
[EventDate "2024.02.12"]
[EventType "tourn"]
[EventCountry "BEL"]
[SourceTitle "playchess.com"]
[Source "ChessBase"]
[SourceQuality "1"]
[TimeControl "40/5400+30:900+30"]

1. d4 {[%emt 0:00:19]} Nf6 {[%emt 0:00:18]} 2. Nc3 {[%emt 0:00:27]} d5 {[%emt 0:00:23]} 3. Bf4 {[%emt 0:00:27]} c5 {[%emt 0:00:18]} 4. e3 {[%emt 0:00:35]} cxd4 {[%emt 0:00:18]} 5. exd4 {[%emt 0:00:20]} a6 {[%emt 0:00:14]} 6. Nf3 {[%emt 0:00:51]} Nc6 {[%emt 0:00:15]} 7. Ne5 {[%emt 0:01:21]} h5 {[%emt 0:00:10]} 8. Nxc6 {[%emt 0:05:50]} bxc6 {[%emt 0:00:08]} 9. Bd3 {[%emt 0:04:06]} Qb6 {[%emt 0:04:50]} 10. Ne2 {[%emt 0:08:30]} a5 {[%emt 0:25:50]} 11. O-O {[%emt 0:03:44]} Ba6 {[%emt 0:03:19]} 12. Bxa6 {[%emt 0:06:00]} Qxa6 {[%emt 0:06:51]} 13. Nc1 {[%emt 0:04:13]} Qb6 {[%emt 0:05:41]} 14. Rb1 {[%emt 0:03:50]} e6 {[%emt 0:01:21]} 15. c3 {[%emt 0:01:26]} Ne4 {[%emt 0:09:34]} 16. Nd3 {[%emt 0:02:06]} Bd6 {[%emt 0:04:05]} 17. Bxd6 {[%emt 0:03:19]} Nxd6 {[%emt 0:00:05]} 18. Ne5 {[%emt 0:05:19]} Qb5 {[%emt 0:14:26]} 19. Re1 {[%emt 0:03:36]} Ra7 {[%emt 0:08:18]} 20. Qf3 {[%emt 0:11:59]} Ne4 {[%emt 0:00:55]} 21. c4 {[%emt 0:05:01]} Qb6 {[%emt 0:04:20]} 22. Rbd1 {[%emt 0:05:51]} Rh6 {[%emt 0:00:39]} 23. Qe3 {[%emt 0:03:09]} Qa6 {[%emt 0:02:26]} 24. cxd5 {[%emt 0:01:43]} cxd5 {[%emt 0:00:24]} 25. Rc1 {[%emt 0:01:06]} f6 {[%emt 0:02:58]} 26. Rc6 {[%emt 0:03:42]} Qb7 {[%emt 0:01:38]} 27. Rxe6+ {[%emt 0:01:21]} Kf8 {[%emt 0:00:06]} 28. Nc6 {[%emt 0:03:34]} Ra6 {[%emt 0:01:17]} 29. Qa3+ {[%emt 0:01:53]} Kg8 {[%emt 0:00:32]} 30. Re8+ {[%emt 0:05:23]} Kh7 {[%emt 0:00:06]} 31. Nd8 {[%emt 0:01:43]} Qb4 {[%emt 0:01:50]} 32. Qe3 {[%emt 0:02:06]} f5 {[%emt 0:00:57]} 33. Nf7 {[%emt 0:00:41]} Rhe6 {[%emt 0:00:48]} 34. Rh8+ {[%emt 0:00:56]} Kg6 {[%emt 0:00:01]} 35. Ne5+ {[%emt 0:00:41]} Rxe5 {[%emt 0:01:58]} 36. dxe5 {[%emt 0:00:14]} d4 {[%emt 0:00:37]} 37. Qe2 {[%emt 0:00:12]} Kf7 {[%emt 0:00:23]} 38. Rc1 {[%emt 0:00:26]} g6 {[%emt 0:00:36]} 39. Qxa6 {[%emt 0:00:42]} Kg7 {[%emt 0:00:21]} 40. Rc7+ {[%emt 0:00:42]} 1-0

[Event "WWRR B-Group 2024"]
[Site "Wachtebeke"]
[Date "2024.02.12"]
[Round "1.3"]
[White "Nemegeer, Arne"]
[Black "Kurt, Sascha"]
[Result "1/2-1/2"]
[ECO "B22"]
[WhiteElo "2100"]
[BlackElo "2002"]
[Annotator "NA RC"]
[PlyCount "66"]
[EventDate "2024.02.12"]
[EventType "tourn"]
[EventCountry "BEL"]
[SourceTitle "playchess.com"]
[Source "ChessBase"]
[SourceQuality "1"]
[TimeControl "40/5400+30:900+30"]

1. e4 {[%emt 0:00:02]} c5 {[%emt 0:00:04]} 2. Nf3 {[%emt 0:00:02]} e6 {[%emt 0:00:04]} 3. c3 {[%emt 0:00:04]} Nf6 {[%emt 0:00:05]} 4. e5 {[%emt 0:00:03]} Nd5 {[%emt 0:00:04]} 5. d4 {[%emt 0:00:01]} cxd4 {[%emt 0:00:11]} 6. cxd4 {[%emt 0:00:05]} d6 {[%emt 0:00:26]} 7. Bc4 {[%emt 0:00:03]} Nc6 {[%emt 0:01:23]} 8. O-O {[%emt 0:00:08]} Nb6 {[%emt 0:01:03]} 9. Bd3 {[%emt 0:00:27]} Be7 {[%emt 0:01:36]} 10. Nc3 {[%emt 0:00:32]} dxe5 {[%emt 0:00:50]} 11. dxe5 {[%emt 0:00:19]} O-O {[%emt 0:01:26]} 12. Qe2 {[%emt 0:01:57]} Nd5 {[%emt 0:13:57]} 13. Qe4 {[%emt 0:09:24]} g6 {[%emt 0:03:32]} 14. Bh6 {[%emt 0:02:29]} Nxc3 {[%emt 0:00:40]} 15. bxc3 {[%emt 0:00:09]} Re8 {[%emt 0:01:00]} 16. Rfe1 {[%emt 0:02:22]} Qd5 {[%emt 0:02:29]} 17. Rad1 {[%emt 0:07:49]} Qxe4 {[%emt 0:00:32]} 18. Bxe4 {[%emt 0:00:06]} a5 {[%emt 0:03:48]} 19. a4 {[%emt 0:03:38]} Ra6 {[%emt 0:01:43]} 20. Be3 {[%emt 0:04:18]} f6 {[%emt 0:11:02]} 21. Bd3 {[%emt 0:05:20]} Ra8 {[%emt 0:00:37]} 22. Bb5 {[%emt 0:00:11]} Rd8 {[%emt 0:00:39]} 23. exf6 {[%emt 0:01:39]} Rxd1 {[%emt 0:02:17]} 24. Rxd1 {[%emt 0:00:22]} Bxf6 {[%emt 0:00:04]} 25. c4 {[%emt 0:13:42]} Kf7 {[%emt 0:07:51]} 26. Ng5+ {[%emt 0:05:06]} Bxg5 {[%emt 0:02:53]} 27. Bxg5 {[%emt 0:00:15]} e5 {[%emt 0:01:16]} 28. Rd6 {[%emt 0:09:14]} Be6 {[%emt 0:12:38]} 29. h4 {[%emt 0:05:38]} Nd4 {[%emt 0:02:09]} 30. Rb6 {[%emt 0:00:37]} Rb8 {[%emt 0:10:24]} 31. Ba6 {[%emt 0:05:10]} Ne2+ {[%emt 0:01:53]} 32. Kh2 {[%emt 0:01:09]} Nc3 {[%emt 0:00:19]} 33. Bb5 {[%emt 0:04:53]} Nxb5 {[%emt 0:01:33]} 1/2-1/2

[Event "WWRR B-Group 2024"]
[Site "Wachtebeke"]
[Date "2024.02.12"]
[Round "1.4"]
[White "Schrik, Rachid"]
[Black "Dreelinck, Jacob"]
[Result "0-1"]
[ECO "A65"]
[WhiteElo "2179"]
[BlackElo "2196"]
[Annotator "TA"]
[PlyCount "90"]
[EventDate "2024.02.12"]
[EventType "tourn"]
[EventCountry "BEL"]
[SourceTitle "playchess.com"]
[Source "ChessBase"]
[SourceQuality "1"]
[TimeControl "40/5400+30:900+30"]

{[%evp 22,90,65,0,73,39,84,71,68,66,87,77,102,73,121,66,111,81,90,68,82,48,65,0,187,39,36,22,62,48,52,35,29,0,36,-189,-206,-256,-221,-264,-242,-293,-303,-301,-301,-352,-347,-403,-430,-428,-425,-429,-425,-407,-420,-484,-489,-489,-489,-489,-470,-468,-393,-568,-542,-29978,-1014,-841,-877,-491,-422]} 1. d4 {[%emt 0:00:20]} Nf6 {[%emt 0:00:07]} 2. c4 {[%emt 0:00:23]} c5 {[%emt 0:00:23]} 3. d5 {[%emt 0:00:28]} e6 {[%emt 0:00:27]} 4. Nc3 {[%emt 0:00:45]} exd5 {[%emt 0:00:03]} 5. cxd5 {[%emt 0:00:16]} d6 {[%emt 0:00:05]} 6. e4 {[%emt 0:00:35]} g6 {[%emt 0:00:04]} 7. f3 {[%emt 0:02:35]} Bg7 {[%emt 0:00:18]} 8. Bg5 {[%emt 0:00:36]} O-O {[%emt 0:01:28]} 9. Qd2 {[%emt 0:01:05]} a6 {[%emt 0:00:04]} 10. a4 {[%emt 0:00:53]} Nbd7 {[%emt 0:00:06]} 11. Nh3 {[%emt 0:00:45]} Qa5 {[%emt 0:06:32]} 12. Ra3 {[%emt 0:01:29]} ({White should try} 12. Nf2 $14) 12... Re8 {[%emt 0:08:57]} (12... Ne5 $11 {remains equal.} 13. Nf2 Qb4) 13. Be2 {[%emt 0:01:42]} h5 {[%emt 0:02:03]} 14. Nf2 {[%emt 0:06:45]} Nh7 {[%emt 0:01:08] White is better.} 15. Bh6 {[%emt 0:04:02]} Bh8 {[%emt 0:05:37]} 16. O-O {[%emt 0:03:21]} Qd8 {[%emt 0:00:38]} 17. Be3 {[%emt 0:04:20]} Qe7 {[%emt 0:02:35]} (17... b6 $142) 18. Raa1 {[%emt 0:10:38]} (18. a5 $16) 18... Ndf8 {[%emt 0:07:20]} 19. Rae1 {[%emt 0:04:17]} Bd7 {[%emt 0:02:04]} 20. Bd3 {[%emt 0:09:48]} b5 {[%emt 0:03:39]} 21. axb5 {[%emt 0:04:54]} axb5 {[%emt 0:03:35]} 22. f4 {[%emt 0:03:47]} ({Better is} 22. Nxb5 $14 Bxb5 23. Bxb5) 22... Qd8 $2 {[%emt 0:19:49]} (22... b4 $11 23. Ncd1 Bg7) 23. Kh1 {[%emt 0:07:28]} (23. Nxb5 $18 Qb8 24. Na3) 23... c4 {[%emt 0:10:28]} 24. Be2 {[%emt 0:05:31]} Rb8 {[%emt 0:08:15]} 25. Bd4 {[%emt 0:01:59]} Bxd4 {[%emt 0:00:28]} 26. Qxd4 {[%emt 0:00:06]} Qb6 {[%emt 0:00:20]} 27. Qd1 {[%emt 0:05:08]} Rbc8 {[%emt 0:05:55] [#]} 28. e5 $2 {[%emt 0:11:14] This move loses the game for White.} dxe5 $19 {[%emt 0:00:49]} 29. f5 {[%emt 0:00:32]} Bxf5 {[%emt 0:02:02]} (29... gxf5 30. Bxh5 b4 31. Na4) 30. g4 {[%emt 0:00:23]} hxg4 {[%emt 0:01:46]} 31. Bxg4 {[%emt 0:00:33]} Bd7 {[%emt 0:01:07]} 32. Bxd7 {[%emt 0:03:47]} Nxd7 {[%emt 0:00:02]} 33. Ng4 {[%emt 0:00:19]} f5 {[%emt 0:01:53]} 34. Nh6+ {[%emt 0:02:24]} Kg7 {[%emt 0:00:54]} 35. Nxf5+ {[%emt 0:01:34]} gxf5 {[%emt 0:00:02]} 36. Rxf5 {[%emt 0:00:30]} Ndf6 {[%emt 0:01:43] Wards off Qg4+} 37. Qf3 {[%emt 0:01:12]} Kh8 {[%emt 0:01:37]} 38. Nxb5 {[%emt 0:01:23]} Qxb5 {[%emt 0:02:57]} 39. Rxf6 {[%emt 0:00:09] [#] Intending Rf7 and mate.} Rf8 {[%emt 0:00:07]} (39... Qxb2 $2 40. Rf7 Qd4 41. Rg1 $18) 40. Rxf8+ {[%emt 0:00:25]} Rxf8 {[%emt 0:00:02]} 41. Qe4 {[%emt 0:15:20]} Qxb2 {[%emt 0:06:49] Threatens to win with ...Qd4.} 42. Qxc4 {[%emt 0:00:00]} (42. d6 $142 Qf2 43. Qxe5+ Nf6 44. Qe3 Qxe3 45. Rxe3) 42... Qf2 {[%emt 0:03:55] ( -> ...Qf3+)} 43. Qe4 {[%emt 0:01:11]} Nf6 {[%emt 0:00:41]} (43... Rg8 $142 44. Qxe5+ Nf6 45. Qe2 Rg1+ 46. Rxg1 Qxe2 47. h3 Nxd5 48. Rg2 Qf1+ 49. Kh2 Nf4 50. Rb2 Qxh3+ (50... Nxh3 {leads to mate.} 51. Rb8+ Kg7 52. Rb7+ Kg6 53. Kg3 Qf4+ 54. Kg2 Qe4+ 55. Kh2 Qxb7 56. Kxh3 Kf5 57. Kg3 Qe4 58. Kh2 Kf4 59. Kg1 Kf3 60. Kh2 Qc2+ 61. Kh3 Qh7#) 51. Kg1 Qe3+ 52. Kh2 Qf3 53. Rc2 Kg7 (53... Qh5+ {is a self mate.} 54. Kg3 Qg6+ 55. Kxf4 Qxc2 56. Kf3 Qd3+ 57. Kg2 Qe2+ 58. Kh3 Kg7 59. Kg3 Kf6 60. Kf4 Qd3 61. Kg4 Qe3 62. Kh4 Kf5 63. Kh5 Qh3#) 54. Rb2 Ne2 55. Rxe2 Qxe2+ 56. Kg3 Kf7 57. Kf4 Kf6 58. Kg3 Kf5 59. Kh3 Kf4 60. Kh4 Qh2#) 44. Qe2 {[%emt 0:02:24]} Qxe2 {[%emt 0:00:00]} ({Not} 44... Nxd5 45. Qh5+ Kg7 46. Rg1+ $16 (46. Rxe5 $2 Qf1#) (46. Rxe5 $2 Qf1#)) 45. Rxe2 {[%emt 0:00:00]} Re8 {[%emt 0:00:00] Weighted Error Value: White=0.63/Black=0.34.  Loses game:     	White=1     	Black=1      Mistake:       	White=4     	Black=2      Inaccurate:     	White=3     	Black=4      OK:         	White=8     	Black=13     Best:        	White=1     	Black=2} (45... Nxd5 46. Rxe5 Rf1+ 47. Kg2 $15) 0-1

[Event "WWRR B-Group 2024"]
[Site "Wachtebeke"]
[Date "2024.02.12"]
[Round "1.5"]
[White "Vandenhole, Kobe"]
[Black "Raptis, Filippos"]
[Result "1-0"]
[ECO "B31"]
[WhiteElo "2081"]
[BlackElo "2174"]
[Annotator "RC"]
[PlyCount "123"]
[EventDate "2024.02.12"]
[EventType "tourn"]
[EventCountry "BEL"]
[SourceTitle "playchess.com"]
[Source "ChessBase"]
[SourceQuality "1"]
[TimeControl "40/5400+30:900+30"]

1. e4 {[%emt 0:00:18]} c5 {[%emt 0:00:49]} 2. Nf3 {[%emt 0:00:22]} Nc6 {[%emt 0:00:04]} 3. Bb5 {[%emt 0:00:16]} g6 {[%emt 0:00:08]} 4. c3 {[%emt 0:00:18]} Bg7 {[%emt 0:02:49]} 5. d4 {[%emt 0:00:10]} cxd4 {[%emt 0:00:05]} 6. cxd4 {[%emt 0:00:11]} a6 {[%emt 0:00:18]} 7. Ba4 {[%emt 0:02:46]} b5 {[%emt 0:00:54]} 8. Bb3 {[%emt 0:00:30]} d6 {[%emt 0:01:31]} 9. O-O {[%emt 0:05:09]} e6 {[%emt 0:02:44]} 10. d5 {[%emt 0:05:34]} Na5 {[%emt 0:01:14]} 11. dxe6 {[%emt 0:01:54]} fxe6 {[%emt 0:00:07]} 12. Nc3 {[%emt 0:02:53]} Ne7 {[%emt 0:07:43]} 13. Ng5 {[%emt 0:06:47]} Nxb3 {[%emt 0:04:44]} 14. Qxb3 {[%emt 0:00:19]} Qd7 {[%emt 0:00:45]} 15. a4 {[%emt 0:03:40]} Rb8 {[%emt 0:13:49]} 16. axb5 {[%emt 0:00:40]} axb5 {[%emt 0:00:21]} 17. Be3 {[%emt 0:02:09]} Nc6 {[%emt 0:08:08]} 18. Rfc1 {[%emt 0:06:55]} O-O {[%emt 0:06:24]} 19. Nd5 {[%emt 0:04:35]} Nd4 {[%emt 0:27:36]} 20. Bxd4 {[%emt 0:05:56]} Bxd4 {[%emt 0:02:53]} 21. Rc7 {[%emt 0:00:14]} Rxf2 {[%emt 0:06:18]} 22. Kh1 {[%emt 0:01:02]} Qe8 {[%emt 0:00:47]} 23. Ne7+ {[%emt 0:17:31]} Kh8 {[%emt 0:01:08]} 24. Nc6 {[%emt 0:01:14]} Ra8 {[%emt 0:03:01]} 25. Qd1 {[%emt 0:09:14]} Rxa1 {[%emt 0:07:55]} 26. Qxa1 {[%emt 0:00:03]} Bg7 {[%emt 0:00:37]} 27. Kg1 {[%emt 0:04:14]} Rc2 {[%emt 0:00:27]} 28. Nf7+ {[%emt 0:01:58]} Kg8 {[%emt 0:00:11]} 29. Nxd6 {[%emt 0:00:37]} Qxc6 {[%emt 0:00:52]} 30. Rxc6 {[%emt 0:00:55]} Rxc6 {[%emt 0:00:02]} 31. Qa8 {[%emt 0:03:49]} Rxd6 {[%emt 0:00:50]} 32. Qxc8+ {[%emt 0:00:02]} Bf8 {[%emt 0:00:08]} 33. e5 {[%emt 0:00:50]} Rd1+ {[%emt 0:00:49]} 34. Kf2 {[%emt 0:00:01]} Kf7 {[%emt 0:00:43]} 35. Qb7+ {[%emt 0:00:03]} Kg8 {[%emt 0:00:17]} 36. Qxb5 {[%emt 0:00:16]} Rd5 {[%emt 0:00:32]} 37. Qb8 {[%emt 0:00:24]} Kf7 {[%emt 0:00:27]} 38. Qc7+ {[%emt 0:01:14]} Be7 {[%emt 0:00:01]} 39. b3 {[%emt 0:02:04]} Rb5 {[%emt 0:00:42]} 40. Qc3 {[%emt 0:00:48]} Rb4 {[%emt 0:01:01]} 41. Qf3+ {[%emt 0:16:48]} Kg7 {[%emt 0:15:27]} 42. Ke2 {[%emt 0:01:33]} Rb5 {[%emt 0:00:21]} 43. Qc3 {[%emt 0:00:33]} Rb4 {[%emt 0:00:31]} 44. h3 {[%emt 0:00:57]} Kf7 {[%emt 0:00:42]} 45. Qd3 {[%emt 0:01:52]} Rb8 {[%emt 0:00:27]} 46. Qf3+ {[%emt 0:01:30]} Kg7 {[%emt 0:00:25]} 47. Kd1 {[%emt 0:01:45]} Rb4 {[%emt 0:00:41]} 48. Kc2 {[%emt 0:00:27]} Rb6 {[%emt 0:00:28]} 49. Qg4 {[%emt 0:01:13]} Kf7 {[%emt 0:00:19]} 50. h4 {[%emt 0:01:09]} h5 {[%emt 0:00:40]} 51. Qf3+ {[%emt 0:00:10]} Kg7 {[%emt 0:00:01]} 52. g4 {[%emt 0:00:14]} Rb4 {[%emt 0:00:37]} 53. gxh5 {[%emt 0:00:22]} gxh5 {[%emt 0:00:21]} 54. Qxh5 {[%emt 0:00:10]} Bxh4 {[%emt 0:00:51]} 55. Qe8 {[%emt 0:00:39]} Rb6 {[%emt 0:00:29]} 56. Kc3 {[%emt 0:01:11]} Rb7 {[%emt 0:00:43]} 57. Qxe6 {[%emt 0:00:20]} Rc7+ {[%emt 0:00:01]} 58. Kd3 {[%emt 0:00:30]} Be7 {[%emt 0:00:11]} 59. Qg4+ {[%emt 0:00:13]} Kf7 {[%emt 0:00:06]} 60. e6+ {[%emt 0:00:16]} Ke8 {[%emt 0:00:03]} 61. Qg6+ {[%emt 0:00:27]} Kd8 {[%emt 0:00:07]} 62. Qg8+ {[%emt 0:00:04]} 1-0

[Event "WWRR B-Group 2024"]
[Site "Wachtebeke"]
[Date "2024.02.12"]
[Round "2.1"]
[White "Toulzac, Pierre-Yves"]
[Black "Raptis, Filippos"]
[Result "1/2-1/2"]
[ECO "E90"]
[WhiteElo "2046"]
[BlackElo "2174"]
[Annotator "TA"]
[PlyCount "51"]
[EventDate "2024.02.12"]
[EventType "tourn"]
[EventCountry "BEL"]
[SourceTitle "playchess.com"]
[Source "ChessBase"]
[SourceQuality "1"]
[TimeControl "40/5400+30:900+30"]

{[%evp 14,51,22,15,48,45,112,103,135,150,229,163,143,153,185,68,126,123,124,70,71,67,130,95,230,233,252,100,100,104,72,60,58,66,65,-6,-16,-27,-22,-35]} 1. d4 {[%emt 0:00:19]} Nf6 {[%emt 0:00:04]} 2. c4 {[%emt 0:00:08]} g6 {[%emt 0:00:05]} 3. Nc3 {[%emt 0:00:08]} Bg7 {[%emt 0:00:08]} 4. e4 {[%emt 0:01:46]} d6 {[%emt 0:00:06]} 5. h3 {[%emt 0:01:16]} O-O {[%emt 0:00:09]} 6. Be3 {[%emt 0:01:16]} e5 {[%emt 0:01:02]} 7. d5 {[%emt 0:01:06]} a5 {[%emt 0:00:34]} 8. Nf3 {[%emt 0:02:43][%cal Bg1f3,Bf3d2,Bd2c4][%mdl 32]} Nh5 {[%emt 0:02:36]} 9. Nd2 {[%emt 0:01:38]} Qe8 {[%emt 0:01:18]} (9... Qe7 $14) 10. c5 $16 {[%emt 0:01:03][%cal Bc4c5,Bc5d6][%mdl 32]} f5 {[%emt 0:31:16][%cal Bf7f5,Bf5f4][%mdl 32] [#] ...f4 is the strong threat. White is better.} 11. cxd6 $1 {[%emt 0:01:56]} Nd7 {[%emt 0:06:36]} (11... cxd6 $16 12. a3 Nf6) 12. Nc4 {[%emt 0:11:02]} f4 {[%emt 0:03:39]} 13. Bd2 $36 {[%emt 0:00:42][%mdl 2048] Keeping Black busy. White has more active pieces.} c6 {[%emt 0:00:26]} 14. a4 {[%emt 0:02:11]} ({White should try} 14. Qc2 $18) 14... Qd8 {[%emt 0:00:55]} (14... Nhf6 $14) 15. Be2 {[%emt 0:02:57]} Nhf6 {[%emt 0:00:03][%cal Bh5f6,Bf6h7,Bh7g5][%mdl 32] [#]} 16. dxc6 {[%emt 0:04:51]} (16. O-O $1 $16) 16... bxc6 $14 {[%emt 0:00:04]} 17. Qc2 {[%emt 0:01:02]} Kh8 {[%emt 0:01:56]} (17... Nc5 $14) 18. Rd1 {[%emt 0:04:50]} h5 {[%emt 0:02:25]} (18... Nc5 $16 {is a better defense.}) 19. Nb1 $18 {[%emt 0:02:18]} Nh7 {[%emt 0:05:36]} 20. b4 $2 {[%emt 0:04:39]} (20. h4 $18) 20... axb4 $16 {[%emt 0:01:08]} 21. Bxb4 {[%emt 0:00:26]} Ng5 {[%emt 0:00:43]} 22. Ncd2 {[%emt 0:05:17]} c5 {[%emt 0:12:06]} 23. Bc3 {[%emt 0:02:05]} ({Much weaker is} 23. Bxc5 f3 24. gxf3 (24. Bxf3 Nxf3+ 25. gxf3 Qg5 $11) 24... Nxc5 25. Qxc5 Ne6 $15) 23... Ne6 {[%emt 0:00:51]} 24. a5 {[%emt 0:04:06] Wards off Qb6} ({Better is} 24. Na3 $14) 24... Nd4 $11 {[%emt 0:05:12]} 25. Bxd4 {[%emt 0:04:20]} cxd4 {[%emt 0:01:40]} 26. Nc4 {[%emt 0:03:42] Weighted Error Value: White=0.32/Black=0.32.  Mistake:       	White=4     	Black=5      Inaccurate:     	---       	Black=1      OK:         	White=6     	Black=5      Best:        	White=1     	Black=2} 1/2-1/2